fUSD/lending_fUSD_20240606
["ID","MTS","AMOUNT","RATE_DAILY","PERIOD"]
[328635177,1717645841297,-5890.47342882,0.00013999,2]
[328635178,1717645841306,-306630.63181074,0.00014,2]
[328635179,1717645842160,-551.52501938,0.00014,2]
[328635204,1717645844512,-7739.99999986,0.00014,2]
[328635205,1717645844524,-2340.54213192,0.00014,2]
[328635206,1717645844677,-10740.59607171,0.00014,2]
[328635221,1717645846647,-158668.15255571,0.00014,2]
[328635222,1717645846829,-1949.05831004,0.00014,2]
[328635294,1717645858301,2552.42616078,8.691e-05,2]
[328635295,1717645860846,-957.53926875,0.0001101,2]
[328635296,1717645860870,-362.81476569,0.00011589,2]
[328635297,1717645860892,-19769.39955785,0.00011589,2]
[328635298,1717645860918,-123910.24640771,0.00011589,2]
[328635300,1717645878874,2552.42616078,8.691e-05,2]
[328635306,1717645894355,2552.42616078,8.691e-05,2]
[328635308,1717645909435,155.0,8.691e-05,2]
[328635309,1717645909545,947.47056362,8.691e-05,2]
[328635311,1717645912572,1362.97468143,8.691e-05,2]
[328635312,1717645915519,155.0,8.691e-05,2]
[328635313,1717645916319,1546.98010843,6.518e-05,2]
[328635314,1717645923445,208.48463648,8.691e-05,2]
[328635315,1717645925554,947.47056362,8.691e-05,2]
[328635316,1717645926577,1362.97468143,8.691e-05,2]
[328635317,1717645929542,155.0,8.691e-05,2]
[328635318,1717645942569,1362.97468143,8.691e-05,2]
[328635319,1717645943554,1025.52918933,8.691e-05,2]
[328635320,1717645953527,155.0,8.691e-05,2]
[328635321,1717645969688,206743.76163387,8.691e-05,2]
[328635322,1717645973541,155.0,8.691e-05,2]
[328635323,1717645993540,155.0,8.691e-05,2]
[328635324,1717646000748,200.0,0.00014,30]
[328635325,1717646011277,500.0,0.00033642,30]
[328635326,1717646011565,500.0,0.00033642,30]
[328635327,1717646011896,500.0,0.00033642,30]
[328635328,1717646012204,500.0,0.00033642,30]
[328635329,1717646012482,500.0,0.00033642,30]
[328635330,1717646012905,573.73764139,0.00033642,30]
[328635331,1717646020278,500.0,0.00033642,30]
[328635332,1717646020605,561.72725115,0.00033642,30]
[328635333,1717646022315,500.0,0.00033642,30]
[328635334,1717646022742,500.0,0.00033642,30]
[328635335,1717646022856,500.0,0.00033642,30]
[328635336,1717646023022,500.0,0.00033642,30]
[328635337,1717646023133,500.0,0.00033642,30]
[328635338,1717646023300,316.64,0.00033642,30]
[328635339,1717646023388,500.0,0.00033642,30]
[328635340,1717646023722,500.0,0.00033642,30]
[328635341,1717646024029,500.0,0.00033642,30]
[328635342,1717646024296,500.0,0.00033642,30]
[328635343,1717646024565,500.0,0.00033642,30]
[328635344,1717646024854,500.0,0.00033642,30]
[328635345,1717646025128,500.0,0.00033642,30]
[328635346,1717646025723,331.65,0.00033642,30]
[328635347,1717646027868,351.69633526,0.00033642,30]
[328635348,1717646028456,500.0,0.00033642,30]
[328635349,1717646028722,500.0,0.00033642,30]
[328635350,1717646028981,500.0,0.00033642,30]
[328635351,1717646029257,500.0,0.00033642,30]
[328635352,1717646029553,432.86473305,0.00033642,30]
[328635353,1717646031053,500.0,0.00033642,30]
[328635354,1717646031310,546.03012258,0.00033642,30]
[328635355,1717646037428,500.0,0.00033642,30]
[328635356,1717646037691,500.0,0.00033642,30]
[328635357,1717646052652,500.0,0.00033642,30]
[328635358,1717646053087,500.0,0.00033642,30]
[328635359,1717646076837,500.0,0.00033642,30]
[328635360,1717646077135,500.0,0.00033642,30]
[328635361,1717646077383,313.6014488,0.00033642,30]
[328635362,1717646080147,500.0,0.00033642,30]
[328635363,1717646080643,500.0,0.00033642,30]
[328635364,1717646080742,500.0,0.00033642,30]
[328635365,1717646081092,500.0,0.00033642,30]
[328635366,1717646081359,312.26671124,0.00033642,30]
[328635367,1717646081858,510.06727428,0.00033642,30]
[328635368,1717646083626,500.0,0.00033642,30]
[328635369,1717646084116,518.39938022,0.00033642,30]
[328635370,1717646084608,500.0,0.00033642,30]
[328635371,1717646084864,500.0,0.00033642,30]
[328635372,1717646085165,500.0,0.00033642,30]
[328635373,1717646085459,500.0,0.00033642,30]
[328635374,1717646086057,500.0,0.00033642,30]
[328635375,1717646086129,500.0,0.00033642,30]
[328635376,1717646086366,500.0,0.00033642,30]
[328635377,1717646086403,500.0,0.00033642,30]
[328635378,1717646086642,500.0,0.00033642,30]
[328635379,1717646086698,526.07532771,0.00033642,30]
[328635380,1717646087252,500.0,0.00033642,30]
[328635381,1717646087529,239.63570803,0.00033642,30]
[328635382,1717646088625,500.0,0.00033642,30]
[328635383,1717646088916,500.0,0.00033642,30]
[328635384,1717646089181,500.0,0.00033642,30]
[328635385,1717646089450,508.23186422,0.00033642,30]
[328635386,1717646091505,269.48684929,0.00033642,30]
[328635387,1717646095976,500.0,0.00033642,30]
[328635388,1717646096254,500.0,0.00033642,30]
[328635389,1717646096521,500.0,0.00033642,30]
[328635390,1717646096804,500.0,0.00033642,30]
[328635391,1717646097283,500.0,0.00033642,30]
[328635392,1717646097402,555.57200348,0.00033642,30]
[328635393,1717646097433,500.0,0.00033642,30]
[328635394,1717646097548,500.0,0.00033642,30]
[328635395,1717646097724,606.2,0.00033642,30]
[328635396,1717646097810,500.0,0.00033642,30]
[328635397,1717646098098,500.0,0.00033642,30]
[328635398,1717646098141,500.0,0.00033642,30]
[328635399,1717646098312,606.2,0.00033642,30]
[328635400,1717646098392,500.0,0.00033642,30]
[328635401,1717646098619,606.2,0.00033642,30]
[328635402,1717646098718,500.0,0.00033642,30]
[328635403,1717646098747,500.0,0.00033642,30]
[328635404,1717646098924,606.2,0.00033642,30]
[328635405,1717646099000,516.3864474,0.00033642,30]
[328635406,1717646099325,606.2,0.00033642,30]
[328635407,1717646099355,500.0,0.00033642,30]
[328635408,1717646099603,606.2,0.00033642,30]
[328635409,1717646099717,500.0,0.00033642,30]
[328635410,1717646099858,606.2,0.00033642,30]
[328635411,1717646100014,500.0,0.00033642,30]
[328635412,1717646100150,606.2,0.00033642,30]
[328635413,1717646100296,500.0,0.00033642,30]
[328635414,1717646100408,606.2,0.00033642,30]
[328635415,1717646100592,500.0,0.00033642,30]
[328635416,1717646100671,606.2,0.00033642,30]
[328635417,1717646101016,616.6,0.00033642,30]
[328635418,1717646101049,606.2,0.00033642,30]
[328635419,1717646101077,507.81437102,0.00033642,30]
[328635420,1717646101301,606.2,0.00033642,30]
[328635421,1717646101688,606.2,0.00033642,30]
[328635422,1717646101988,606.2,0.00033642,30]
[328635423,1717646102589,606.2,0.00033642,30]
[328635424,1717646102872,606.2,0.00033642,30]
[328635425,1717646103144,606.2,0.00033642,30]
[328635426,1717646103406,606.2,0.00033642,30]
[328635427,1717646103657,537.28241085,0.00033642,30]
[328635428,1717646103692,606.2,0.00033642,30]
[328635429,1717646103960,606.2,0.00033642,30]
[328635430,1717646104269,606.2,0.00033642,30]
[328635431,1717646104520,606.2,0.00033642,30]
[328635432,1717646104803,606.2,0.00033642,30]
[328635433,1717646105070,606.3,0.00033642,30]
[328635434,1717646105100,500.0,0.00033642,30]
[328635435,1717646105384,500.0,0.00033642,30]
[328635436,1717646105648,511.0503937,0.00033642,30]
[328635437,1717646105946,500.0,0.00033642,30]
[328635438,1717646106229,500.0,0.00033642,30]
[328635439,1717646106836,500.0,0.00033642,30]
[328635440,1717646107149,500.0,0.00033642,30]
[328635441,1717646108039,500.0,0.00033642,30]
[328635442,1717646108334,500.0,0.00033642,30]
[328635443,1717646108594,316.02541387,0.00033642,30]
[328635444,1717646109392,1506.74,0.00033642,30]
[328635445,1717646109424,591.1113626,0.00033642,30]
[328635446,1717646109711,1506.74,0.00033642,30]
[328635447,1717646110010,1506.74,0.00033642,30]
[328635448,1717646110352,1506.74,0.00033642,30]
[328635449,1717646110650,1506.74,0.00033642,30]
[328635450,1717646111042,500.0,0.00033642,30]
[328635451,1717646111628,500.0,0.00033642,30]
[328635452,1717646111745,1506.74,0.00033642,30]
[328635453,1717646112043,1506.74,0.00033642,30]
[328635454,1717646112233,511.87175754,0.00033642,30]
[328635455,1717646112291,1506.74,0.00033642,30]
[328635456,1717646112578,1506.74,0.00033642,30]
[328635457,1717646112844,1506.74,0.00033642,30]
[328635458,1717646113131,1506.74,0.00033642,30]
[328635459,1717646113382,1506.74,0.00033642,30]
[328635460,1717646113663,1506.74,0.00033642,30]
[328635461,1717646113956,1506.74,0.00033642,30]
[328635462,1717646114493,1506.74,0.00033642,30]
[328635463,1717646114625,514.01206683,0.00033642,30]
[328635464,1717646114697,1506.74,0.00033642,30]
[328635465,1717646114939,500.0,0.00033642,30]
[328635466,1717646114993,1506.74,0.00033642,30]
[328635467,1717646115232,500.0,0.00033642,30]
[328635468,1717646115267,1506.74,0.00033642,30]
[328635469,1717646115510,500.0,0.00033642,30]
[328635470,1717646115566,1506.74,0.00033642,30]
[328635471,1717646115783,519.28524485,0.00033642,30]
[328635472,1717646116175,1506.74,0.00033642,30]
[328635473,1717646116293,1506.74,0.00033642,30]
[328635474,1717646116588,1506.74,0.00033642,30]
[328635475,1717646116852,1506.74,0.00033642,30]
[328635476,1717646117123,1506.78,0.00033642,30]
[328635477,1717646120417,500.0,0.00033642,30]
[328635478,1717646120666,500.0,0.00033642,30]
[328635479,1717646120981,500.0,0.00033642,30]
[328635480,1717646121577,500.0,0.00033642,30]
[328635481,1717646121876,585.27641443,0.00033642,30]
[328635482,1717646124214,349.30705599,0.00033642,30]
[328635483,1717646126060,500.0,0.00033642,30]
[328635484,1717646126683,500.0,0.00033642,30]
[328635485,1717646126981,500.0,0.00033642,30]
[328635486,1717646127263,500.0,0.00033642,30]
[328635487,1717646127542,500.0,0.00033642,30]
[328635488,1717646127819,500.0,0.00033642,30]
[328635489,1717646128104,267.76,0.00033642,30]
[328635490,1717646128520,500.0,0.00033642,30]
[328635491,1717646128817,500.0,0.00033642,30]
[328635492,1717646129094,500.0,0.00033642,30]
[328635493,1717646129366,500.0,0.00033642,30]
[328635494,1717646129662,224.46046418,0.00033642,30]
[328635495,1717646129725,500.0,0.00033642,30]
[328635496,1717646130014,348.12958658,0.00033642,30]
[328635497,1717646132751,509.37623272,0.00033642,30]
[328635498,1717646135868,500.0,0.00033642,30]
[328635499,1717646136156,500.0,0.00033642,30]
[328635500,1717646143232,500.0,0.00033642,30]
[328635501,1717646143532,500.0,0.00033642,30]
[328635502,1717646143913,500.0,0.00033642,30]
[328635503,1717646144177,500.0,0.00033642,30]
[328635504,1717646144486,500.0,0.00033642,30]
[328635505,1717646144761,500.0,0.00033642,30]
[328635506,1717646145098,500.0,0.00033642,30]
[328635507,1717646145696,500.0,0.00033642,30]
[328635508,1717646145728,500.0,0.00033642,30]
[328635509,1717646145967,500.0,0.00033642,30]
[328635510,1717646146233,582.44199445,0.00033642,30]
[328635511,1717646150626,500.0,0.00033642,30]
[328635512,1717646150861,-326.97129438,0.0001137,2]
[328635513,1717646150886,-155.0,0.00011371,2]
[328635514,1717646150912,-415.255222,0.00011372,2]
[328635515,1717646150940,-3177.82271134,0.00011427,2]
[328635516,1717646150966,-5579.5952359,0.00011456,2]
[328635517,1717646150992,-161.46550851,0.00011586,2]
[328635518,1717646151018,-156.59568569,0.00011587,2]
[328635519,1717646151042,-155.0,0.00011587,2]
[328635520,1717646151067,-490.15604963,0.00011587,2]
[328635521,1717646151092,-274.32577168,0.00011588,2]
[328635522,1717646151118,-155.0,0.00011589,2]
[328635523,1717646151145,-337.80398391,0.00011589,2]
[328635524,1717646151171,-10970.15287954,0.000124,2]
[328635525,1717646151195,-200.0,0.00012556,2]
[328635526,1717646151221,-1000.0,0.00012699,2]
[328635527,1717646151246,-200.0,0.00012699,2]
[328635528,1717646151283,425.77524291,0.00033642,30]
[328635529,1717646153315,238.05411199,0.0001137,2]
[328635530,1717646157717,414.61846535,0.00033642,30]
[328635531,1717646161890,500.0,0.00033642,30]
[328635532,1717646162147,500.0,0.00033642,30]
[328635533,1717646162519,500.0,0.00033642,30]
[328635534,1717646162804,500.0,0.00033642,30]
[328635535,1717646163405,500.0,0.00033642,30]
[328635536,1717646163679,500.0,0.00033642,30]
[328635537,1717646163956,500.0,0.00033642,30]
[328635538,1717646164242,500.0,0.00033642,30]
[328635539,1717646164517,500.0,0.00033642,30]
[328635540,1717646164778,545.95398842,0.00033642,30]
[328635541,1717646164865,500.0,0.00033642,30]
[328635542,1717646165147,500.0,0.00033642,30]
[328635543,1717646165758,500.0,0.00033642,30]
[328635544,1717646165801,500.0,0.00033642,30]
[328635545,1717646166053,500.0,0.00033642,30]
[328635546,1717646166357,500.0,0.00033642,30]
[328635547,1717646166633,500.0,0.00033642,30]
[328635548,1717646166924,500.0,0.00033642,30]
[328635549,1717646166991,500.0,0.00033642,30]
[328635550,1717646167201,478.7,0.00033642,30]
[328635551,1717646167267,567.09292341,0.00033642,30]
[328635552,1717646173501,372.6022853,0.00033642,30]
[328635553,1717646174201,500.0,0.00033642,30]
[328635554,1717646174469,500.0,0.00033642,30]
[328635555,1717646175077,500.0,0.00033642,30]
[328635556,1717646175347,500.0,0.00033642,30]
[328635557,1717646175616,500.0,0.00033642,30]
[328635558,1717646175722,-300.0,0.00031675,120]
[328635559,1717646175992,500.0,0.00033642,30]
[328635560,1717646176024,534.55575826,0.00033642,30]
[328635561,1717646176205,500.0,0.00033642,30]
[328635562,1717646176494,500.0,0.00033642,30]
[328635563,1717646177188,500.0,0.00033642,30]
[328635564,1717646178808,500.0,0.00033642,30]
[328635565,1717646184856,347.31,0.00033642,30]
[328635566,1717646186320,500.0,0.00033642,30]
[328635567,1717646186611,500.0,0.00033642,30]
[328635568,1717646187160,500.0,0.00033642,30]
[328635569,1717646187510,500.0,0.00033642,30]
[328635570,1717646187796,500.0,0.00033642,30]
[328635571,1717646188381,500.0,0.00033642,30]
[328635572,1717646188692,500.0,0.00033642,30]
[328635573,1717646188947,500.0,0.00033642,30]
[328635574,1717646189542,500.0,0.00033642,30]
[328635575,1717646189813,500.0,0.00033642,30]
[328635576,1717646190123,500.0,0.00033642,30]
[328635577,1717646190368,500.0,0.00033642,30]
[328635578,1717646190724,614.86486022,0.00033642,30]
[328635579,1717646195934,500.0,0.00033642,30]
[328635580,1717646198098,500.0,0.00033642,30]
[328635581,1717646198412,500.0,0.00033642,30]
[328635582,1717646198666,500.0,0.00033642,30]
[328635583,1717646198968,500.0,0.00033642,30]
[328635584,1717646199042,500.0,0.00033642,30]
[328635585,1717646199261,500.0,0.00033642,30]
[328635586,1717646199306,631.64711126,0.00033642,30]
[328635587,1717646199524,500.0,0.00033642,30]
[328635588,1717646199560,500.0,0.00033642,30]
[328635589,1717646199818,500.0,0.00033642,30]
[328635590,1717646199945,503.2,0.00033642,30]
[328635591,1717646200082,500.0,0.00033642,30]
[328635592,1717646200112,500.0,0.00033642,30]
[328635593,1717646200215,503.2,0.00033642,30]
[328635594,1717646200369,500.0,0.00033642,30]
[328635595,1717646200400,537.08321251,0.00033642,30]
[328635596,1717646200486,503.2,0.00033642,30]
[328635597,1717646200641,500.0,0.00033642,30]
[328635598,1717646200805,503.2,0.00033642,30]
[328635599,1717646200904,590.21204526,0.00033642,30]
[328635600,1717646201062,503.2,0.00033642,30]
[328635601,1717646201344,503.2,0.00033642,30]
[328635602,1717646201603,503.2,0.00033642,30]
[328635603,1717646201862,503.2,0.00033642,30]
[328635604,1717646202113,503.2,0.00033642,30]
[328635605,1717646202390,503.2,0.00033642,30]
[328635606,1717646202670,503.2,0.00033642,30]
[328635607,1717646202953,503.2,0.00033642,30]
[328635608,1717646203235,503.2,0.00033642,30]
[328635609,1717646203501,503.2,0.00033642,30]
[328635610,1717646204123,503.2,0.00033642,30]
[328635611,1717646204411,503.2,0.00033642,30]
[328635612,1717646204703,256.05662996,0.00033642,30]
[328635613,1717646218758,153597.0,0.00029,90]
[328635614,1717646235234,-801.68,0.00010923,2]
[328635615,1717646235258,-2000.0,0.00012894,3]
[328635617,1717646303061,155.0,0.00012894,2]
[328635618,1717646317114,155.0,0.00012894,2]
[328635619,1717646333063,163.7035682,0.00012894,2]
[328635620,1717646399373,250.0,0.0001275,2]
[328635621,1717646399687,6948.6,0.0001275,2]
[328635622,1717646522838,358.60372416,0.0001293,2]
[328635623,1717646616921,442.09,0.00012691,2]
[328635624,1717646626666,-150.0,0.00013029,2]
[328635625,1717646626691,-3850.0,0.0001303,2]
[328635626,1717646627683,8725.32270764,0.0001293,2]
[328635627,1717646629488,-4000.0,0.0001293,2]
[328635628,1717646630019,-4000.0,0.0001293,2]
[328635629,1717646630788,-4000.0,0.0001293,2]
[328635630,1717646671460,-150.0,0.0001268,2]
[328635631,1717646671492,-1067.04191087,0.00012701,2]
[328635632,1717646671513,-291.25612605,0.00012702,2]
[328635633,1717646671534,-172.58,0.00012703,2]
[328635634,1717646671555,-201.53,0.00012703,2]
[328635635,1717646671576,-2117.59196308,0.00012929,2]
[328635636,1717646671850,-899.55594656,0.00012929,2]
[328635637,1717646671876,-3100.44405344,0.0001293,2]
[328635638,1717646672947,-4000.0,0.0001293,2]
[328635639,1717646673505,-223.70990837,0.0001293,2]
[328635640,1717646673527,-717.20744828,0.0001293,2]
[328635641,1717646673550,-3059.08264335,0.0001303,2]
[328635642,1717646674175,-4000.0,0.0001303,2]
[328635643,1717646675294,-1645.40025665,0.0001303,2]
[328635644,1717646689658,2354.59974335,0.0001293,2]
[328635648,1717646702706,-200.0,0.00012794,2]
[328635649,1717646702729,-3800.0,0.00012841,2]
[328635650,1717646705918,-4000.0,0.00012841,2]
[328635651,1717646706831,-4000.0,0.00012841,2]
[328635652,1717646707838,-4000.0,0.00012841,2]
[328635653,1717646710810,-4000.0,0.00012841,2]
[328635654,1717646711814,-4000.0,0.00012841,2]
[328635655,1717646836075,-1739.03867018,0.00012584,2]
[328635656,1717646836100,-250.0,0.00012794,2]
[328635657,1717646836124,-1276.26411755,0.00012839,2]
[328635658,1717646836147,-169.06243248,0.00012839,2]
[328635659,1717646836169,-565.63477979,0.00012839,2]
[328635660,1717646836718,-1803.63402414,0.00012839,2]
[328635661,1717646836740,-646.2410345,0.00012839,2]
[328635662,1717646836762,-531.0306251,0.00012839,2]
[328635663,1717646836782,-635.40011658,0.00012839,2]
[328635664,1717646836805,-150.0,0.0001284,2]
[328635665,1717646836829,-233.69419968,0.0001284,2]
[328635666,1717646837487,-4000.0,0.0001284,2]
[328635667,1717646838804,-3303.62528227,0.0001284,2]
[328635668,1717646838829,-100.0,0.00012841,2]
[328635669,1717646838852,-596.37471773,0.00012841,2]
[328635670,1717646839719,-4000.0,0.00012841,2]
[328635671,1717646840595,-4000.0,0.00012841,2]
[328635672,1717646841332,-4000.0,0.00012841,2]
[328635685,1717646874720,-4000.0,0.00012446,2]
[328635686,1717646875487,-4000.0,0.00012446,2]
[328635687,1717646876023,-2970.15287954,0.00012446,2]
[328635688,1717646876044,-1029.84712046,0.00012447,2]
[328635689,1717646881868,-1305.45011633,0.00012447,2]
[328635690,1717646881891,-163.18081514,0.00012447,2]
[328635691,1717646881914,-453.04353369,0.00012448,2]
[328635692,1717646881940,-2078.32553484,0.00012838,2]
[328635695,1717646896892,-452.96950587,0.00011424,2]
[328635696,1717646896915,-1898.8849,0.00012741,2]
[328635697,1717646896938,-1648.14559413,0.00012837,2]
[328635698,1717646897538,-3288.87312437,0.00012837,2]
[328635699,1717646897560,-711.12687563,0.00012838,2]
[328635700,1717646905657,-315.84498753,0.00011423,2]
[328635701,1717646905680,-173.14008293,0.00012837,2]
[328635702,1717646905703,-164.47898142,0.00012837,2]
[328635703,1717646905727,-3346.53594812,0.00012838,2]
[328635711,1717646943377,162.86,0.00010163,2]
[328635717,1717646974619,42.67087797,0.00010786,2]
[328635721,1717647004979,-155.0,0.00010786,2]
[328635722,1717647005007,-857.93912203,0.00010786,2]
[328635723,1717647005033,-1037.4444,0.0001274,2]
[328635724,1717647005059,-436.31462719,0.00012773,2]
[328635725,1717647005084,-200.66614932,0.00012774,2]
[328635726,1717647005110,-150.0,0.00012837,2]
[328635727,1717647005136,-150.0,0.00012837,2]
[328635728,1717647005162,-29329.54315832,0.00012838,2]
[328635729,1717647005188,-10883.09254314,0.00012838,2]
[328635731,1717647031624,-650.08635641,0.00010786,2]
[328635732,1717647032332,-3998.40039415,0.00010786,2]
[328635733,1717647032348,-15120.91280729,0.00010786,2]
[328635734,1717647032358,-155.78269558,0.00010786,2]
[328635735,1717647032367,-5231.44,0.00012712,2]
[328635736,1717647032377,-35447.00090803,0.00012837,2]
[328635737,1717647032386,-293.74704525,0.00012837,2]
[328635738,1717647032396,-89831.38264757,0.00012838,2]
[328635739,1717647032406,-8416.30367655,0.00012839,2]
[328635740,1717647032415,-362.72006922,0.00012841,2]
[328635742,1717647032424,-400.41,0.0001285,2]
[328635744,1717647032433,-1000.0,0.00013029,2]
[328635746,1717647032442,-150.99,0.00013029,2]
[328635748,1717647032454,-900.61,0.0001305,2]
[328635749,1717647032463,-1598.93,0.0001305,2]
[328635750,1717647032472,-157.89,0.00013321,2]
[328635751,1717647032482,-157.89,0.00013329,2]
[328635752,1717647032491,-157.89,0.00013336,2]
[328635753,1717647032502,-185.03,0.00013336,2]
[328635754,1717647032512,-157.89,0.00013343,2]
[328635755,1717647032521,-5373.14,0.00013343,6]
[328635756,1717647032531,-499.99,0.00013343,2]
[328635757,1717647032540,-9999.99,0.00013343,2]
[328635758,1717647032550,-157.89,0.00013351,2]
[328635759,1717647032559,-157.89,0.00013358,2]
[328635760,1717647032569,-157.89,0.00013366,2]
[328635761,1717647032579,-157.89,0.00013373,2]
[328635762,1717647032588,-157.89,0.0001338,2]
[328635763,1717647032597,-157.89,0.00013388,2]
[328635764,1717647032607,-734.41,0.00013586,2]
[328635765,1717647032617,-2751.0,0.00013699,2]
[328635766,1717647032626,-200.0,0.00013699,2]
[328635767,1717647032635,-268.5,0.00013699,2]
[328635768,1717647032645,-1205.35,0.00013699,2]
[328635769,1717647032654,-470.52658047,0.00013714,2]
[328635770,1717647032664,-3000.0,0.0001386,2]
[328635771,1717647032673,-196.828,0.00013889,2]
[328635772,1717647032682,-1983.442,0.00013889,2]
[328635773,1717647032692,-2174.5305,0.00013889,2]
[328635774,1717647032701,-3750.5428,0.00013898,2]
[328635775,1717647032710,-378.9608,0.00013898,2]
[328635776,1717647032720,-308.2161,0.000139,2]
[328635777,1717647032729,-173.25656806,0.000139,2]
[328635778,1717647032739,-162.43358455,0.000139,2]
[328635779,1717647032750,-6522.18121585,0.000139,2]
[328635780,1717647032760,-1871.291,0.000139,2]
[328635781,1717647032769,-260.77376554,0.000139,2]
[328635782,1717647032779,-238.04713179,0.000139,2]
[328635783,1717647032788,-191.2806081,0.000139,2]
[328635784,1717647032798,-2149.85103518,0.000139,2]
[328635785,1717647032807,-322.95272295,0.000139,2]
[328635786,1717647032817,-2981.82767055,0.000139,2]
[328635787,1717647032826,-202.91696774,0.00013984,2]
[328635788,1717647032836,-169.97380214,0.00013987,2]
[328635789,1717647032852,-1548.30423127,0.00013987,2]
[328635790,1717647032861,-239.79550489,0.00013987,2]
[328635791,1717647032871,-157.13383188,0.00013987,2]
[328635792,1717647032880,-155.55440655,0.00013987,2]
[328635793,1717647032891,-338.29816075,0.00013987,2]
[328635794,1717647032901,-291.15152196,0.00013987,2]
[328635795,1717647032910,-1066.6874522,0.00013987,2]
[328635796,1717647032920,-3047.79445284,0.00013987,2]
[328635797,1717647032931,-1959.025154,0.00013987,2]
[328635798,1717647032941,-2139.01176332,0.00013988,2]
[328635799,1717647032951,-4953.1086547,0.00013989,2]
[328635800,1717647032960,-75875.1346806,0.00013989,2]
[328635801,1717647032970,-15157.5842441,0.00013989,2]
[328635802,1717647032979,-154.76,0.0001399,2]
[328635803,1717647032988,-179.52164024,0.0001399,2]
[328635804,1717647032999,-155.0,0.00013998,2]
[328635805,1717647033009,-645.39979882,0.00013998,2]
[328635806,1717647033018,-217.72202082,0.00013998,2]
[328635807,1717647033027,-463.12584543,0.00013998,2]
[328635808,1717647033036,-524.51431416,0.00013998,2]
[328635809,1717647033046,-328.65878878,0.00013998,2]
[328635810,1717647033055,-309.34915615,0.00013998,2]
[328635811,1717647033065,-2229.17988786,0.00013998,2]
[328635812,1717647033074,-217.26605951,0.00013998,2]
[328635813,1717647033084,-200.09555152,0.00013998,2]
[328635814,1717647033094,-436.52373446,0.00013998,2]
[328635815,1717647033103,-157.35788625,0.00013998,2]
[328635816,1717647033113,-192.91233946,0.00013998,2]
[328635817,1717647033123,-1000.0,0.00013998,2]
[328635818,1717647033132,-1316.94661362,0.00013998,2]
[328635819,1717647033142,-546.77712073,0.00013998,2]
[328635820,1717647033151,-484.55471149,0.00013998,2]
[328635821,1717647033160,-155.41310588,0.00013998,2]
[328635822,1717647033170,-1381.93073453,0.00013998,2]
[328635823,1717647033179,-520.94607398,0.00013998,2]
[328635824,1717647033188,-307.67424255,0.00013998,2]
[328635825,1717647033198,-209.19515345,0.00013998,2]
[328635826,1717647033207,-4235.95421752,0.00013998,2]
[328635827,1717647033217,-160.85916977,0.00013998,2]
[328635828,1717647033227,-167.73863507,0.00013998,2]
[328635829,1717647033237,-253.35547152,0.00013998,2]
[328635830,1717647033246,-156.28115497,0.00013998,2]
[328635831,1717647033255,-207.43268069,0.00013998,2]